bitfinex-derivatives/quotes_BNBF0:USTF0_20250524
["timestamp","ask_amount","ask_price","bid_price","bid_amount"]
[1748129548289,1.19442518,667.97,667.4,0.965]
[1748129548489,1.04886399,667.99,667.4,0.965]
[1748129548689,1.08652876,667.96,667.4,0.965]
[1748129549091,1.08652876,667.95,667.4,0.965]
[1748129549290,2.13539275,667.95,667.35,0.47574851]
[1748129549686,1.08652876,667.94,667.35,0.47574851]
[1748129549885,1.08652876,667.93,667.35,0.47574851]
[1748129550185,1.04886399,667.92,667.4,0.47574851]
[1748129550390,2.13539275,667.92,667.4,0.47574851]
[1748129550986,1.08652876,667.91,667.4,0.47574851]
[1748129551190,2.13539275,667.91,667.4,0.47574851]
[1748129551592,1.08652876,667.9,667.4,0.47574851]
[1748129551890,1.04886399,667.89,667.4,0.47574851]
[1748129552488,1.04886399,667.89,667.41,0.47574851]
[1748129552987,1.04886399,667.89,667.42,0.808]
[1748129553191,1.04886399,667.88,667.42,0.808]
[1748129554192,1.04886399,667.87,667.42,0.808]
[1748129555194,1.04886399,667.86,667.42,0.808]
[1748129555892,1.04886399,667.86,667.56,0.47574851]
[1748129556094,1.04886399,667.85,667.56,0.47574851]
[1748129557588,1.04886399,667.84,667.56,0.47574851]
[1748129558095,1.04886399,667.84,667.55,0.47574851]
[1748129558288,1.10778939,668.11,667.55,0.47574851]
[1748129558491,1.82748804,668.1,667.55,0.47574851]
[1748129558689,1.82748804,668.09,667.55,0.47574851]
[1748129558893,2.91316595,668.08,667.55,0.47574851]
[1748129559190,1.82748804,668.07,667.55,0.47574851]
[1748129559390,2.91316595,668.06,667.55,0.47574851]
[1748129559592,1.19321226,668.05,667.55,0.47574851]
[1748129559890,1.19321226,668.04,667.55,0.47574851]
[1748129560091,1.19321226,668.03,667.55,0.47574851]
[1748129560396,1.08567791,668.02,667.55,0.47574851]
[1748129560697,1.08567791,668.01,667.61,0.47574851]
[1748129561097,1.04760247,668.0,667.61,0.47574851]
[1748129561296,2.13328038,668.0,667.61,0.47574851]
[1748129561496,1.08567791,667.99,667.61,0.47574851]
[1748129561795,1.04760247,668.0,667.63,0.47574851]
[1748129561796,1.08567791,667.98,667.63,0.47574851]
[1748129562196,1.04760247,668.0,667.63,0.47574851]
[1748129562499,1.08541907,667.99,667.63,0.47574851]
[1748129562793,2.13302154,667.99,667.63,0.47574851]
[1748129562998,1.08541907,667.98,667.63,0.47574851]
[1748129563198,1.08541907,667.98,667.66,0.47574851]
[1748129563696,1.04760247,667.97,667.66,0.47574851]
[1748129564395,1.04760247,667.96,667.66,0.47574851]
[1748129565600,1.04760247,667.95,667.66,0.47574851]
[1748129565797,1.04760247,667.95,667.7,0.47574851]
[1748129567000,1.04760247,667.94,667.7,0.47574851]
[1748129567396,1.04760247,667.94,667.71,0.47574851]
[1748129568098,1.04760247,667.93,667.71,0.47574851]
[1748129568702,1.04760247,667.93,667.85,0.47574851]
[1748129569202,1.10778939,668.2,667.85,0.47574851]
[1748129569400,1.82731338,668.19,667.85,0.47574851]
[1748129569702,2.9153792,668.18,667.85,0.47574851]
[1748129569899,1.19307471,668.17,667.85,0.47574851]
[1748129570098,1.08806582,668.17,667.85,0.47574851]
[1748129570294,2.13538819,668.16,667.85,0.47574851]
[1748129570701,1.08806582,668.15,667.86,0.47574851]
[1748129571401,1.08806582,668.14,667.86,0.47574851]
[1748129571596,2.13538819,668.14,667.86,0.47574851]
[1748129571897,1.04732237,668.14,667.86,0.47574851]
[1748129572501,1.04732237,668.13,667.86,0.47574851]
[1748129573502,1.04732237,668.13,667.97,0.47574851]
[1748129573802,1.04732237,668.12,667.97,0.47574851]
[1748129575204,1.10778939,668.29,667.97,0.47574851]
[1748129575502,1.10778939,668.29,667.9,0.47574851]
[1748129576002,1.08581655,668.28,667.9,0.47574851]
[1748129576498,1.08581655,668.27,667.9,0.47574851]
[1748129577002,1.08581655,668.26,667.9,0.47574851]
[1748129577405,1.0453333,668.27,667.9,0.47574851]
[1748129577706,1.0453333,668.27,667.95,0.47574851]
[1748129578005,2.13054502,668.26,667.95,0.47574851]
[1748129578305,1.0453333,668.26,667.95,0.47574851]
[1748129579200,1.0453333,668.25,667.95,0.47574851]
[1748129579705,1.08473805,668.24,667.95,0.47574851]
[1748129579905,1.08473805,668.24,667.92,0.47574851]
[1748129580105,1.0453333,668.25,667.92,0.47574851]
[1748129580407,1.0453333,668.24,667.92,0.47574851]
[1748129581607,1.0453333,668.23,667.92,0.47574851]
[1748129581908,1.0453333,668.23,667.91,0.47574851]
[1748129582308,1.08480813,668.22,667.91,0.47574851]
[1748129582607,2.13014143,668.21,667.91,0.47574851]
[1748129583309,1.08480813,668.2,667.91,0.47574851]
[1748129583603,1.08480813,668.19,667.91,0.47574851]
[1748129583808,1.08480813,668.19,667.81,0.47574851]
[1748129584010,1.0453333,668.18,667.81,0.47574851]
[1748129584210,2.13014143,668.18,667.81,0.47574851]
[1748129584711,1.08480813,668.17,667.81,0.47574851]
[1748129585106,1.0453333,668.18,667.81,0.47574851]
[1748129585107,2.13014143,668.16,667.81,0.47574851]
[1748129585510,1.08480813,668.15,667.81,0.47574851]
[1748129585811,1.08480813,668.14,667.82,0.47574851]
[1748129586210,1.08480813,668.13,667.82,0.47574851]
[1748129586512,2.13014143,668.13,667.82,0.47574851]
[1748129586714,1.0453333,668.13,667.82,0.47574851]
[1748129587814,1.0453333,668.13,667.79,0.47574851]
[1748129588315,1.0453333,668.12,667.79,0.47574851]
[1748129589010,1.07938017,668.11,667.79,0.47574851]
[1748129589717,1.0453333,668.1,667.79,0.47574851]
[1748129589915,1.07938017,668.09,667.74,0.47574851]
[1748129590214,1.0453333,668.08,667.74,0.47574851]
[1748129591216,1.0453333,668.07,667.74,0.47574851]
[1748129591818,1.0453333,668.07,667.66,0.47574851]
[1748129592117,1.0453333,668.06,667.66,0.47574851]
[1748129593321,1.0453333,668.06,667.74,0.47574851]
[1748129593620,1.0453333,668.05,667.74,0.47574851]
[1748129594121,1.0453333,668.04,667.74,0.47574851]
[1748129594821,1.0453333,668.04,667.71,0.47574851]
[1748129595421,1.46941097,668.43,667.71,0.47574851]
[1748129595422,1.0453333,668.03,667.71,0.47574851]
[1748129596424,1.0453333,668.02,667.71,0.47574851]
[1748129596926,1.0453333,668.02,667.74,0.47574851]
[1748129597525,1.10778939,668.29,667.74,0.47574851]
[1748129597726,1.82468608,668.28,667.74,0.47574851]
[1748129597924,1.82468608,668.27,667.74,0.47574851]
[1748129598225,2.90890378,668.26,667.74,0.47574851]
[1748129598424,1.19132604,668.25,667.74,0.47574851]
[1748129598625,3.32169123,668.24,667.74,0.47574851]
[1748129598925,1.19132604,668.23,667.74,0.47574851]
[1748129599125,1.19132604,668.22,667.73,0.47574851]
[1748129599326,1.19132604,668.21,667.73,0.47574851]
[1748129599522,1.0842177,668.22,667.73,0.47574851]
[1748129599727,2.27587181,668.21,667.73,0.47574851]
[1748129599926,1.0842177,668.2,667.73,0.47574851]
[1748129600227,2.13036519,668.2,667.73,0.47574851]
[1748129600527,1.0842177,668.19,667.73,0.47574851]
[1748129601126,1.04614749,668.18,667.73,0.47574851]
[1748129601328,1.0842177,668.17,667.83,0.47574851]
[1748129601630,1.0842177,668.16,667.83,0.47574851]
[1748129601829,1.04614749,668.15,667.83,0.47574851]
[1748129602729,1.04614749,668.14,667.83,0.47574851]
[1748129602930,1.08704064,668.13,667.85,0.47574851]
[1748129603331,1.08704064,668.12,667.85,0.47574851]
[1748129603830,1.04614749,668.11,667.85,0.47574851]
[1748129604031,2.13318813,668.11,667.85,0.47574851]
[1748129604532,1.08704064,668.1,667.85,0.47574851]
[1748129604830,2.13318813,668.1,667.85,0.47574851]
[1748129605131,1.08704064,668.09,667.85,0.47574851]
[1748129605431,1.08704064,668.09,667.89,0.47574851]
[1748129605830,1.04614749,668.08,667.89,0.47574851]
[1748129606029,2.13318813,668.08,667.89,0.47574851]
[1748129606533,1.08704064,668.07,667.89,0.47574851]
[1748129606734,1.04614749,668.06,667.89,0.47574851]
[1748129607335,1.08704064,668.05,667.89,0.47574851]
[1748129607636,1.08704064,668.05,667.91,0.47574851]
[1748129607830,2.13318813,668.04,667.91,0.47574851]
[1748129608737,1.08704064,668.03,667.91,0.47574851]
[1748129608931,2.13318813,668.03,667.91,0.47574851]
[1748129609337,1.08704064,668.02,667.91,0.47574851]
[1748129609637,1.04614749,668.03,667.91,0.47574851]
[1748129610238,1.04614749,668.03,667.93,0.47574851]
[1748129610437,1.46941097,668.26,667.93,0.47574851]
[1748129610438,1.04614749,668.02,667.93,0.47574851]
[1748129611439,1.08499149,668.01,667.93,0.47574851]
[1748129611740,1.04614749,668.0,667.93,0.47574851]
[1748129612939,1.04614749,667.99,667.93,0.47574851]
[1748129613639,1.04614749,667.98,667.93,0.47574851]
[1748129614741,1.04614749,667.97,667.93,0.47574851]
[1748129615243,1.04614749,667.97,667.84,0.934]
[1748129615540,1.04614749,667.96,667.84,0.934]
[1748129616438,1.04614749,667.95,667.84,0.934]
[1748129617642,1.04614749,667.94,667.84,0.934]
[1748129618845,1.04614749,667.93,667.84,0.934]
[1748129620043,1.04614749,667.92,667.84,0.934]
[1748129620846,1.10778939,668.11,667.84,0.934]
[1748129621042,1.19382876,668.1,667.84,0.934]
[1748129621243,1.19382876,668.09,667.84,0.934]
[1748129621541,2.13720561,668.08,667.84,0.934]
[1748129622345,1.08851087,668.07,667.84,0.934]
[1748129622645,1.04869474,668.06,667.84,0.934]
[1748129623540,1.04869474,668.05,667.84,0.934]
[1748129624549,1.04869474,668.04,667.84,0.934]
[1748129625343,1.04869474,668.03,667.84,0.934]
[1748129626048,1.04869474,668.02,667.84,0.934]
[1748129627349,1.04869474,668.01,667.84,0.934]
[1748129629045,1.04869474,668.0,667.84,0.934]
[1748129629851,1.04869474,667.99,667.84,0.934]
[1748129631350,1.04869474,667.98,667.84,0.934]
[1748129632251,1.04869474,667.97,667.84,0.934]
[1748129633345,1.04869474,667.96,667.84,0.934]
[1748129634446,1.04869474,667.95,667.84,0.934]
[1748129635455,1.10778939,668.14,667.84,0.934]
[1748129635753,1.1948419,668.13,667.84,0.934]
[1748129635952,1.1948419,668.12,667.84,0.934]
[1748129636153,2.22719894,668.11,667.84,0.934]
[1748129636354,2.08197375,668.11,667.84,0.934]
[1748129636655,1.03235704,668.1,667.84,0.934]
[1748129637256,1.04961671,668.11,667.84,0.934]
[1748129637556,1.04961671,668.09,667.84,0.934]
[1748129637955,1.19505556,668.08,667.84,0.934]
[1748129638156,1.83073355,668.07,667.84,0.934]
[1748129638358,1.19505556,668.06,667.84,0.934]
[1748129638554,2.24467227,668.05,667.84,0.934]
[1748129638752,1.19505556,668.04,667.84,0.934]
[1748129638951,1.19505556,668.03,668.01,0.47607455]
[1748129639153,2.22771834,668.02,668.01,0.47607455]
[1748129639454,3.27733505,668.02,668.01,0.47607455]
[1748129641461,3.27733505,668.02,667.84,0.934]
[1748129641760,1.19505556,668.01,667.84,0.934]
[1748129641960,2.22771834,668.0,667.84,0.934]
[1748129642260,1.19505556,667.99,667.84,0.934]
[1748129642463,2.22767106,667.98,667.84,0.934]
[1748129642662,1.19543861,667.97,667.84,0.934]
[1748129642859,1.19543861,667.96,667.84,0.934]
[1748129643060,1.19543861,667.95,667.84,0.934]
[1748129643259,1.03223245,667.96,667.84,0.934]
[1748129643658,1.03223245,667.95,667.84,0.934]
[1748129643965,2.08184916,667.95,667.84,0.934]
[1748129644468,1.03223245,667.94,667.84,0.934]
[1748129644966,1.04961671,667.95,667.84,0.934]
[1748129645166,1.10778939,668.03,667.84,0.934]
[1748129645167,1.04961671,667.94,667.84,0.934]
[1748129646162,1.04961671,667.93,667.84,0.934]
[1748129647366,1.04961671,667.92,667.84,0.934]
[1748129648867,1.04961671,667.91,667.84,0.934]
[1748129649770,1.04961671,667.9,667.84,0.934]
[1748129650768,1.04961671,667.89,667.84,0.934]
[1748129651870,1.04961671,667.88,667.84,0.934]
[1748129653171,1.04961671,667.87,667.84,0.934]
[1748129654071,1.04961671,667.86,667.84,0.934]
[1748129655171,1.04961671,667.85,667.84,0.934]
[1748129658871,1.04961671,667.85,667.67,0.47634087]
[1748129659076,1.04961671,667.85,667.66,0.47634087]
[1748129659975,1.04961671,667.84,667.66,0.47634087]
[1748129660971,1.04961671,667.83,667.66,0.47634087]
[1748129661376,1.04961671,667.83,667.67,0.824]
[1748129662279,1.04961671,667.82,667.67,0.824]
[1748129663078,1.04961671,667.81,667.67,0.824]
[1748129664583,1.04961671,667.8,667.67,0.824]
[1748129665685,1.10778939,668.09,667.67,0.824]
[1748129665686,1.04961671,667.79,667.67,0.824]
[1748129667287,1.10778939,668.09,667.67,0.824]
[1748129667288,1.04961671,667.78,667.67,0.824]
[1748129668188,1.10778939,668.09,667.67,0.824]
[1748129668388,1.83024984,668.08,667.67,0.824]
[1748129668689,2.87356951,668.07,667.67,0.824]
[1748129668886,1.83024984,668.06,667.67,0.824]
[1748129669086,2.87356951,668.05,667.67,0.824]
[1748129669286,1.83024984,668.04,667.67,0.824]
[1748129669486,1.83024984,668.03,667.67,0.824]
[1748129669786,2.87356951,668.02,667.67,0.824]
[1748129669982,2.24892581,668.01,667.67,0.824]
[1748129670185,2.23803959,668.0,667.67,0.824]
[1748129670387,1.04331967,668.0,667.67,0.824]
[1748129670687,1.04331967,667.99,667.67,0.824]
[1748129671189,1.04331967,667.98,667.67,0.824]
[1748129671390,2.09746145,667.98,667.67,0.824]
[1748129671591,1.04331967,667.97,667.67,0.824]
[1748129671792,1.05414178,667.98,667.67,0.824]
[1748129672591,1.10778939,668.06,667.67,0.824]
[1748129672592,1.05414178,667.97,667.67,0.824]
[1748129672992,1.05414178,667.97,667.87,0.47562477]
[1748129674995,2.22514116,668.33,667.87,0.47562477]
[1748129674996,1.05414178,667.96,667.87,0.47562477]
[1748129675495,1.05414178,667.96,667.67,0.824]
[1748129676196,1.05414178,667.95,667.67,0.824]
[1748129677499,1.10778939,668.16,667.67,0.824]
[1748129677500,1.05414178,667.94,667.67,0.824]
[1748129678396,1.05414178,667.93,667.67,0.824]
[1748129679500,1.05414178,667.92,667.67,0.824]
[1748129680503,1.05414178,667.91,667.67,0.824]
[1748129681502,1.05414178,667.9,667.67,0.824]
[1748129682403,1.05414178,667.89,667.67,0.824]
[1748129683298,1.05414178,667.88,667.67,0.824]
[1748129684100,1.05414178,667.87,667.67,0.824]
[1748129684304,1.05414178,667.87,667.8,0.47562477]
[1748129685707,1.05414178,667.86,667.8,0.47562477]
[1748129686608,1.05414178,667.86,667.67,0.824]
[1748129686803,1.05414178,667.85,667.67,0.824]
[1748129688408,1.05414178,667.84,667.67,0.824]
[1748129689408,1.05414178,667.83,667.67,0.824]
[1748129690409,1.05414178,667.82,667.67,0.824]
[1748129691609,1.05414178,667.81,667.67,0.824]
[1748129693010,1.05414178,667.8,667.67,0.824]
[1748129693811,1.10778939,668.02,667.67,0.824]
[1748129694012,1.19604263,668.01,667.67,0.824]
[1748129694212,1.10778939,668.02,667.67,0.824]
[1748129694213,2.24006812,668.0,667.67,0.824]
[1748129694413,1.19604259,667.99,667.67,0.824]
[1748129694614,1.04402549,668.0,667.67,0.824]
[1748129694615,1.19604259,667.98,667.67,0.824]
[1748129694910,1.19604259,667.97,667.67,0.824]
[1748129695109,1.05542942,667.96,667.67,0.824]
[1748129695510,1.04402549,667.95,667.67,0.824]
[1748129695811,1.05542942,667.96,667.67,0.824]
[1748129696216,1.05542942,667.95,667.67,0.824]
[1748129697013,1.0438327,667.94,667.67,0.824]
[1748129697312,1.05542942,667.95,667.67,0.824]
[1748129697618,1.04461092,667.94,667.67,0.824]
[1748129697819,2.10004034,667.94,667.73,0.47634087]
[1748129698318,1.05542942,667.94,667.73,0.47634087]
[1748129698618,1.04485352,667.93,667.73,0.47634087]
[1748129698816,1.10778939,667.97,667.73,0.47634087]
[1748129698817,1.05542942,667.92,667.73,0.47634087]
[1748129699917,1.05542942,667.91,667.79,0.47634087]
[1748129701021,1.05542942,667.9,667.79,0.47634087]
[1748129701820,1.05542942,667.89,667.79,0.47634087]
[1748129702025,1.05542942,667.89,667.67,0.824]
[1748129702630,1.05542942,667.88,667.67,0.824]
[1748129703726,1.05542942,667.87,667.67,0.824]
[1748129704532,1.05542942,667.86,667.66,0.47634087]
[1748129705729,1.05542942,667.85,667.66,0.47634087]
[1748129706129,1.05542942,667.85,667.68,0.47634087]
[1748129706527,1.05542942,667.84,667.68,0.47634087]
[1748129707534,1.05542942,667.83,667.68,0.47634087]
[1748129707830,1.05542942,667.83,667.54,0.47662942]
[1748129708034,1.04199979,667.82,667.68,0.873]
[1748129708234,1.05542942,667.81,667.68,0.873]
[1748129708535,1.04199979,667.8,667.68,0.873]
[1748129709038,1.05542942,667.81,667.68,0.873]
[1748129709239,1.05542942,667.79,667.68,0.873]
[1748129710637,1.05542942,667.78,667.68,0.873]
[1748129711838,1.05542942,667.77,667.68,0.873]
[1748129713044,1.05542942,667.76,667.68,0.873]
[1748129714045,1.05542942,667.75,667.68,0.873]
[1748129715040,1.05542942,667.74,667.68,0.873]
[1748129715944,1.05542942,667.73,667.68,0.873]
[1748129716845,1.05542942,667.72,667.68,0.873]
[1748129717846,1.05542942,667.71,667.68,0.873]
[1748129718847,1.05542942,667.7,667.68,0.873]
[1748129720048,1.10778939,667.98,667.68,0.873]
[1748129720249,2.2429409,667.97,667.68,0.873]
[1748129720450,1.19515836,667.96,667.68,0.873]
[1748129720744,2.2429409,667.95,667.68,0.873]
[1748129720948,1.04778254,667.94,667.68,0.873]
[1748129721249,1.05707071,667.93,667.68,0.873]
[1748129721544,1.04778254,667.92,667.68,0.873]
[1748129722245,1.05707071,667.93,667.79,0.47560285]
[1748129722749,1.05707071,667.92,667.79,0.47560285]
[1748129723450,1.05707071,667.91,667.79,0.47560285]
[1748129724446,1.05707071,667.9,667.79,0.47560285]
[1748129725449,1.05707071,667.89,667.79,0.47560285]
[1748129726253,1.05707071,667.88,667.79,0.47560285]
[1748129726853,1.05707071,667.88,667.86,0.47560285]
[1748129727552,1.05707071,667.87,667.86,0.47560285]
[1748129730449,1.46941097,668.2,667.86,0.47560285]
[1748129730654,1.83088813,668.19,667.85,0.47560285]
[1748129730853,1.83088813,668.18,667.85,0.47560285]
[1748129731152,1.83088813,668.17,667.85,0.47560285]
[1748129731350,2.87964139,668.16,667.85,0.47560285]
[1748129731553,1.83088813,668.15,667.85,0.47560285]
[1748129731752,1.1144723,668.1,667.85,0.47560285]
[1748129731950,1.1144723,668.1,667.75,0.78]
[1748129731951,1.19527399,668.09,667.81,0.47560285]
[1748129732156,1.19527399,668.08,667.81,0.47560285]
[1748129732353,2.24401126,668.07,667.81,0.47560285]
[1748129732553,1.05712617,668.06,667.81,0.47560285]
[1748129732754,1.04875326,668.05,667.81,0.47560285]
[1748129733055,1.05712617,668.06,667.81,0.47560285]
[1748129733758,1.05712617,668.05,667.82,0.47560285]
[1748129734458,1.05712617,668.04,667.82,0.47560285]
[1748129735657,1.05712617,668.04,667.78,0.47634087]
[1748129735859,1.05712617,668.03,667.78,0.47634087]
[1748129736758,1.05712617,668.02,667.78,0.47634087]
[1748129737758,1.1144723,668.22,667.78,0.47634087]
[1748129737958,1.1944257,668.21,667.78,0.47634087]
[1748129738158,1.04886733,668.21,667.78,0.47634087]
[1748129738758,1.04886733,668.2,667.78,0.47634087]
[1748129739358,1.05612908,668.19,667.78,0.47634087]
[1748129739659,1.05612908,668.19,668.08,0.47473296]
[1748129740158,1.05612908,668.18,668.08,0.47473296]
[1748129740958,1.05612908,668.17,668.08,0.47473296]
[1748129741760,1.05612908,668.17,667.95,0.47473296]
[1748129742262,1.05612908,668.17,667.96,0.667]
[1748129742461,1.05612908,668.16,667.96,0.667]
[1748129743461,1.05612908,668.15,667.96,0.667]
[1748129745163,1.1144723,668.39,667.96,0.667]
[1748129745363,1.82745984,668.38,667.96,0.667]
[1748129745563,2.87744842,668.37,667.96,0.667]
[1748129745763,1.19302568,668.36,667.96,0.667]
[1748129745965,1.19302568,668.35,667.96,0.667]
[1748129746159,1.19302568,668.34,667.96,0.667]
[1748129746360,1.05478614,668.34,667.96,0.667]
[1748129746568,1.04998858,668.33,667.96,0.667]
[1748129747269,2.10477472,668.32,667.96,0.667]
[1748129747574,1.04998858,668.31,667.96,0.667]
[1748129748169,1.05478614,668.32,667.96,0.667]
[1748129748474,1.05478614,668.31,667.96,0.667]
[1748129749976,1.05478614,668.3,667.96,0.667]
[1748129750980,1.05478614,668.29,667.96,0.667]
[1748129751973,1.05478614,668.28,667.96,0.667]
[1748129752173,1.05478614,668.28,667.98,0.47473296]
[1748129752679,1.05478614,668.27,667.98,0.47473296]
[1748129754082,1.05478614,668.26,667.98,0.47473296]
[1748129754781,1.05478614,668.26,668.06,0.47473296]
[1748129755077,1.05478614,668.25,668.06,0.47473296]
[1748129755982,1.05478614,668.24,668.06,0.47473296]
[1748129756778,1.05478614,668.23,668.06,0.47473296]
[1748129757082,1.05478614,668.23,668.08,0.47473296]
[1748129757982,1.05478614,668.22,668.08,0.47473296]
[1748129759483,1.05478614,668.22,667.96,0.667]
[1748129759484,1.05478614,668.21,668.1,0.47473296]
[1748129760584,1.05478614,668.2,668.1,0.47473296]
[1748129761682,1.05478614,668.19,668.04,0.47473296]
[1748129762786,1.05478614,668.18,668.04,0.47473296]
[1748129763385,1.05478614,668.18,667.96,0.667]
[1748129763786,1.05478614,668.17,667.96,0.667]
[1748129765087,1.05478614,668.16,667.96,0.667]
[1748129765383,1.19052211,668.15,667.96,0.667]
[1748129765589,1.05478614,668.16,667.99,0.47473296]
[1748129765783,1.19054705,668.15,667.99,0.47473296]
[1748129765989,2.23653845,668.14,667.99,0.47473296]
[1748129766185,1.0459914,668.13,667.99,0.47473296]
[1748129766384,1.05478614,668.12,667.99,0.47473296]
[1748129766585,1.0459914,668.11,667.99,0.47473296]
[1748129767284,1.0459914,668.1,667.96,0.667]
[1748129767689,2.10077754,668.1,667.96,0.667]
[1748129767890,1.05478614,668.1,667.96,0.667]
[1748129768490,1.05478614,668.09,667.96,0.667]
[1748129769191,1.05478614,668.08,667.96,0.667]
[1748129770293,1.05478614,668.07,667.96,0.667]
[1748129771790,1.05478614,668.06,667.96,0.667]
[1748129772793,1.05478614,668.05,667.96,0.667]
[1748129773893,1.05478614,668.04,667.96,0.667]
[1748129774898,1.05478614,668.03,667.96,0.667]
[1748129775798,1.05478614,668.02,667.96,0.667]
[1748129776697,1.05478614,668.01,667.96,0.667]
[1748129778095,1.05478614,668.0,667.96,0.667]
[1748129779197,1.05478614,667.99,667.96,0.667]
[1748129780502,1.05478614,667.98,667.96,0.667]
[1748129781504,1.1144723,668.22,667.96,0.667]
[1748129781505,1.05478614,667.97,667.96,0.667]
[1748129790310,1.05478614,667.97,667.78,0.47473296]
[1748129790610,1.05478614,667.97,667.68,0.47634087]
[1748129791005,1.05478614,667.96,667.68,0.47634087]
[1748129792406,1.05478614,667.95,667.68,0.47634087]
[1748129792906,1.05478614,667.94,667.68,0.47634087]
[1748129793810,1.05478614,667.93,667.68,0.47634087]
[1748129794210,1.05478614,667.93,667.68,1.38734087]
[1748129794711,1.05478614,667.93,667.68,0.911]
[1748129794910,1.05478614,667.92,667.68,0.911]
[1748129796214,1.05478614,667.91,667.68,0.911]
[1748129797313,1.05478614,667.9,667.68,0.911]
[1748129798415,1.05478614,667.89,667.68,0.911]
[1748129799616,1.05478614,667.88,667.68,0.911]
[1748129800716,1.05478614,667.87,667.68,0.911]
[1748129801315,1.05478614,667.86,667.68,0.911]
[1748129802418,1.05478614,667.85,667.68,0.911]
[1748129803115,1.05478614,667.84,667.68,0.911]
[1748129803612,1.05478614,667.84,667.82,0.4754998]
[1748129804116,1.1144723,668.11,667.82,0.4754998]
[1748129804311,2.87507828,668.1,667.82,0.4754998]
[1748129804513,1.82788894,668.09,667.82,0.4754998]
[1748129804712,2.24050968,668.08,667.82,0.4754998]
[1748129804916,1.19332034,668.07,667.82,0.4754998]
[1748129805117,2.24050968,668.06,667.82,0.4754998]
[1748129805310,1.19332034,668.05,667.82,0.4754998]
[1748129805512,1.19332034,668.04,667.82,0.4754998]
[1748129805712,1.0599659,668.05,667.82,0.4754998]
[1748129805912,2.24065868,668.04,667.82,0.4754998]
[1748129806212,1.04718934,668.04,667.82,0.4754998]
[1748129806411,2.10715524,668.03,667.76,0.4754998]
[1748129806717,1.04718934,668.02,667.76,0.4754998]
[1748129807116,1.04718934,668.01,667.76,0.4754998]
[1748129807318,1.04718934,668.0,667.76,0.4754998]
[1748129807519,2.10715524,668.0,667.76,0.4754998]
[1748129807817,1.0599659,668.0,667.76,0.4754998]
[1748129809118,1.0599659,667.99,667.76,0.4754998]
[1748129810223,1.0599659,667.98,667.76,0.4754998]
[1748129811022,1.0599659,667.98,667.68,0.911]
[1748129811023,1.0599659,667.98,667.8,0.4754998]
[1748129811422,1.0599659,667.97,667.8,0.4754998]
[1748129812624,1.0599659,667.96,667.8,0.4754998]
[1748129812816,1.0599659,667.96,667.83,0.4754998]
[1748129813722,1.0599659,667.95,667.83,0.4754998]
[1748129814518,1.0599659,667.95,667.68,1.3864998]
[1748129814721,1.0599659,667.94,667.68,1.3864998]
[1748129815925,2.2289446,668.24,667.68,1.3864998]
[1748129815926,1.0599659,667.93,667.68,1.3864998]
[1748129816823,1.0599659,667.92,667.68,1.3864998]
[1748129817324,1.0599659,667.92,667.69,0.4754998]
[1748129817824,1.1144723,668.07,667.69,0.4754998]
[1748129817825,1.0599659,667.91,667.69,0.4754998]
[1748129819322,1.0599659,667.9,667.69,0.4754998]
[1748129819821,1.0599659,667.9,667.68,0.911]
[1748129820426,1.0599659,667.89,667.68,0.911]
[1748129821626,1.0599659,667.88,667.68,0.911]
[1748129822627,1.0599659,667.87,667.68,0.911]
[1748129823625,1.0599659,667.86,667.68,0.911]
[1748129825031,1.0599659,667.85,667.68,0.911]
[1748129825831,1.0599659,667.84,667.68,0.911]
[1748129827434,1.0599659,667.83,667.68,0.911]
[1748129828329,1.0599659,667.82,667.68,0.911]
[1748129829535,1.0599659,667.81,667.68,0.911]
[1748129829834,1.0599659,667.81,667.59,0.47634087]
[1748129830433,1.0599659,667.81,667.71,0.47634087]
[1748129830635,1.1144723,668.0,667.71,0.47634087]
[1748129831738,1.06317553,667.99,667.71,0.47634087]
[1748129832840,1.06317553,667.98,667.72,0.47634087]
[1748129833840,1.06317553,667.98,667.73,0.814]
[1748129834041,1.06317553,667.97,667.73,0.814]
[1748129835141,1.1144723,668.06,667.73,0.814]
[1748129835142,1.06317553,667.96,667.73,0.814]
[1748129835442,1.06317553,667.96,667.81,0.47634087]
[1748129836338,1.06317553,667.95,667.81,0.47634087]
[1748129837245,1.06317553,667.94,667.81,0.47634087]
[1748129837845,1.05260125,667.93,667.81,0.47634087]
[1748129838141,1.06317553,667.94,667.81,0.47634087]
[1748129838342,1.06317553,667.92,667.74,0.47634087]
[1748129839149,1.06317553,667.91,667.74,0.47634087]